bitfinex-derivatives/quotes_SOLF0:USTF0_20241230
["timestamp","ask_amount","ask_price","bid_price","bid_amount"]
[1735520127771,1.4966,192.58,192.52,3.22]
[1735520128172,2.6015,192.57,192.53,2.602]
[1735520128772,2.6018,192.55,192.52,3.22]
[1735520129177,1.4966,192.58,192.52,3.22]
[1735520129378,2.6015,192.57,192.52,3.22]
[1735520129678,1.4966,192.58,192.52,3.22]
[1735520131075,1.4661,192.6,192.52,3.22]
[1735520131567,4.1098,192.61,192.57,2.6014]
[1735520133575,39.79856277,192.64,192.54,12.99835999]
[1735520133774,21.22068353,192.7,192.63,12.99835999]
[1735520133980,21.22068353,192.7,192.64,3.22]
[1735520134480,21.22068353,192.7,192.66,12.99835999]
[1735520134876,21.22068353,192.7,192.69,2.5999]
[1735520135076,21.22068353,192.7,192.66,3.22]
[1735520135276,12.99835999,192.76,192.66,3.22]
[1735520136575,2.5993,192.73,192.67,2.6]
[1735520136774,2.5993,192.73,192.66,3.22]
[1735520136980,4.8311,192.8,192.66,16.21835999]
[1735520136981,12.99835999,192.79,192.66,16.21835999]
[1735520138473,2.5992,192.74,192.66,16.21835999]
[1735520139481,2.5992,192.74,192.69,2.5998]
[1735520139877,4.2095,192.8,192.69,12.99835999]
[1735520140485,2.5988,192.77,192.69,12.99835999]
[1735520141583,2.5988,192.77,192.72,2.5993]
[1735520141783,2.5988,192.77,192.72,5.8193]
[1735520142086,2.5993,192.74,192.69,5.8197]
[1735520142385,12.99835999,192.73,192.62,12.99835999]
[1735520142585,12.99835999,192.73,192.63,3.22]
[1735520143478,2.5997,192.7,192.65,2.6003]
[1735520146787,2.5997,192.7,192.66,2.6003]
[1735520147687,1.6168,192.72,192.62,16.21835999]
[1735520147887,4.2162,192.72,192.65,12.99835999]
[1735520148382,1.6168,192.72,192.65,12.99835999]
[1735520148586,6.2084,192.78,192.65,12.99835999]
[1735520148787,1.517,192.77,192.65,12.99835999]
[1735520149183,2.5992,192.75,192.65,12.99835999]
[1735520150784,2.5992,192.74,192.69,2.5997]
[1735520152091,2.5993,192.73,192.65,12.99835999]
[1735520152288,2.5993,192.73,192.62,16.21835999]
[1735520152490,1.517,192.77,192.67,2.6001]
[1735520152886,12.99835999,192.75,192.62,12.99835999]
[1735520153090,2.5997,192.71,192.66,2.6002]
[1735520154887,2.5997,192.71,192.63,3.22]
[1735520155088,2.5997,192.71,192.66,2.6001]
[1735520155787,2.5997,192.71,192.62,12.99835999]
[1735520155992,2.5997,192.71,192.67,2.6001]
[1735520157389,2.6,192.68,192.64,2.6005]
[1735520157596,12.99835999,192.69,192.58,3.22]
[1735520157795,1.5669,192.68,192.58,3.22]
[1735520157998,2.6005,192.65,192.61,2.6008]
[1735520158196,1.5669,192.68,192.58,3.22]
[1735520159286,1.5669,192.68,192.63,2.6006]
[1735520159287,4.167,192.68,192.63,2.6006]
[1735520159486,1.5669,192.68,192.6,16.21835999]
[1735520159894,1.5669,192.68,192.66,2.6002]
[1735520160585,1.5669,192.68,192.6,16.21835999]
[1735520160793,1.5669,192.68,192.6,3.22]
[1735520160988,1.5669,192.68,192.64,2.6005]
[1735520161195,3.0484,192.7,192.6,16.21835999]
[1735520161586,2.5999,192.69,192.6,16.21835999]
[1735520162398,16.04675999,192.7,192.63,2.6005]
[1735520162591,16.04675999,192.7,192.6,3.22]
[1735520162792,1.566,192.69,192.6,3.22]
[1735520163501,1.566,192.69,192.62,2.6008]
[1735520164094,2.6003,192.67,192.62,2.6008]
[1735520164296,1.566,192.69,192.62,2.6008]
[1735520164496,2.6005,192.65,192.61,2.6009]
[1735520164991,12.99835999,192.67,192.55,58.34528859]
[1735520165196,2.6008,192.63,192.59,2.6012]
[1735520165396,2.6008,192.63,192.55,61.52528859]
[1735520165890,2.6008,192.63,192.58,2.6012]
[1735520166601,2.6008,192.63,192.59,2.6012]
[1735520167097,22.78668353,192.69,192.57,12.99835999]
[1735520167598,2.601,192.61,192.55,61.52528859]
[1735520168499,12.99835999,192.64,192.53,12.99835999]
[1735520168693,12.99835999,192.64,192.53,16.17835999]
[1735520168896,3.18,192.67,192.42,7.14773587]
[1735520168897,12.99835999,192.61,192.5,16.17835999]
[1735520169103,2.6016,192.57,192.52,2.602]
[1735520170707,2.6016,192.57,192.5,16.17835999]
[1735520170708,2.6016,192.57,192.53,2.602]
[1735520170900,2.6013,192.58,192.53,2.602]
[1735520172096,3.1767,192.6,192.5,16.17835999]
[1735520172602,12.99835999,192.59,192.52,2.6021]
[1735520172804,12.99835999,192.56,192.48,3.18]
[1735520174103,12.99835999,192.59,192.48,3.18]
[1735520175514,2.6016,192.57,192.52,2.6021]
[1735520176717,12.99835999,192.59,192.5,2.6023]
[1735520176911,12.99835999,192.56,192.47,12.99835999]
[1735520177112,12.99835999,192.5,192.41,2.80709222]
[1735520177314,3.1155,192.49,192.41,2.80709222]
[1735520177814,2.603,192.46,192.41,5.41059222]
[1735520178216,2.603,192.46,192.41,2.6035]
[1735520178412,3.1155,192.49,192.41,2.6035]
[1735520178616,2.6028,192.48,192.42,2.6034]
[1735520178813,3.1155,192.49,192.39,12.99835999]
[1735520179217,2.6031,192.46,192.41,2.6036]
[1735520181412,12.99835999,192.44,192.22,5.2124]
[1735520181616,12.99835999,192.44,192.31,12.99835999]
[1735520182015,1.4681,192.46,192.31,12.99835999]
[1735520182215,1.4681,192.46,192.35,12.99835999]
[1735520182418,1.4681,192.46,192.35,16.17835999]
[1735520183815,4.0711,192.46,192.41,2.6035]
[1735520186018,2.6031,192.45,192.41,2.6035]
[1735520186618,1.4681,192.46,192.41,2.6035]
[1735520186619,4.0711,192.46,192.41,2.6035]
[1735520189319,1.4681,192.46,192.39,2.6038]
[1735520189620,12.99835999,192.44,192.36,3.18]
[1735520189824,2.6035,192.42,192.34,3.18]
[1735520190217,12.99835999,192.44,192.32,12.99835999]
[1735520190419,2.6038,192.4,192.33,3.18]
[1735520190718,12.99835999,192.41,192.32,3.2]
[1735520191315,12.99835999,192.41,192.29,12.99835999]
[1735520191515,3.18,192.45,192.3,3.2]
[1735520191516,12.99835999,192.38,192.3,3.2]
[1735520191711,12.99835999,192.38,192.26,12.99835999]
[1735520191920,12.99835999,192.38,192.27,3.2]
[1735520192221,2.6046,192.34,192.29,2.6052]
[1735520192622,15.60325999,192.32,192.23,3.2]
[1735520192819,12.99835999,192.32,192.23,3.2]
[1735520193322,12.99835999,192.32,192.2,12.99835999]
[1735520193323,12.99835999,192.32,192.22,3.2]
[1735520193528,3.2143,192.31,192.22,3.2]
[1735520193716,2.6054,192.28,192.23,2.6061]
[1735520194223,12.99835999,192.29,192.17,12.99835999]
[1735520194425,12.99835999,192.29,192.18,3.2]
[1735520194816,14.47385999,192.29,192.18,3.2]
[1735520195020,2.6057,192.26,192.2,2.6064]
[1735520195323,2.6057,192.26,192.18,3.2]
[1735520195825,2.6055,192.28,192.23,2.6061]
[1735520196124,3.2143,192.31,192.2,12.99835999]
[1735520196324,16.21265999,192.31,192.2,12.99835999]
[1735520196916,16.21265999,192.31,192.18,3.2]
[1735520197121,12.99835999,192.28,192.17,12.99835999]
[1735520197322,12.99835999,192.28,192.17,16.19835999]
[1735520197522,2.6058,192.26,192.17,16.19835999]
[1735520197828,3.2143,192.31,192.17,16.19835999]
[1735520198022,2.6055,192.28,192.21,2.6063]
[1735520198223,15.60385999,192.28,192.17,16.19835999]
[1735520198821,12.99835999,192.28,192.17,16.19835999]
[1735520199024,2.6055,192.27,192.22,2.6061]
[1735520199328,12.99835999,192.28,192.17,16.19835999]
[1735520200221,12.99835999,192.25,192.13,3.91401614]
[1735520200427,12.99835999,192.25,192.14,3.2]
[1735520200717,2.6065,192.21,192.15,2.607]
[1735520200918,2.6065,192.21,192.14,3.2]
[1735520201123,2.6065,192.21,192.13,3.91401614]
[1735520201323,2.6065,192.2,192.15,2.6071]
[1735520203927,3.1962,192.23,192.16,3.2]
[1735520204131,16.19455999,192.23,192.14,3.2]
[1735520204618,2.6063,192.22,192.16,2.6069]
[1735520204820,2.6063,192.22,192.14,3.2]
[1735520204821,16.19455999,192.23,192.14,3.2]
[1735520205230,2.6063,192.22,192.17,2.6069]
[1735520206728,16.19455999,192.23,192.14,3.2]
[1735520206928,16.19455999,192.23,192.12,12.99835999]
[1735520206929,2.6065,192.2,192.15,2.6071]
[1735520212428,2.6065,192.2,192.12,2.6076]
[1735520212429,2.6069,192.17,192.12,2.6076]
[1735520212631,12.99835999,192.17,192.12,2.6076]
[1735520212833,12.99835999,192.17,192.06,3.2]
[1735520213029,2.607,192.16,192.11,2.6077]
[1735520213228,2.607,192.16,192.06,16.19835999]
[1735520214032,2.607,192.16,192.09,2.608]
[1735520214234,2.607,192.16,192.06,16.19835999]
[1735520215134,2.607,192.16,192.09,2.608]
[1735520215435,12.99835999,192.17,192.06,16.19835999]
[1735520215628,2.6072,192.15,192.06,16.19835999]
[1735520215933,2.6072,192.15,192.1,2.6077]
[1735520216131,12.99835999,192.17,192.1,2.6077]
[1735520216434,2.6072,192.15,192.06,16.19835999]
[1735520216934,2.6072,192.15,192.11,2.6076]
[1735520217331,2.6072,192.15,192.06,16.19835999]
[1735520217534,2.6071,192.16,192.12,2.6075]
[1735520218427,15.60485999,192.2,192.16,2.6069]
[1735520218632,16.19455999,192.23,192.12,3.2]
[1735520218835,16.19455999,192.23,192.12,16.19835999]
[1735520219331,2.6063,192.22,192.12,16.19835999]
[1735520219739,12.99835999,192.29,192.15,12.99835999]
[1735520219938,15.60365999,192.29,192.24,2.6058]
[1735520220135,12.99835999,192.29,192.19,3.2]
[1735520220333,2.6056,192.27,192.22,2.6062]
[1735520221235,16.19835999,192.26,192.15,3.2]
[1735520221832,16.19835999,192.26,192.18,2.6066]
[1735520222037,1.5423,192.25,192.18,2.6066]
[1735520222232,1.5423,192.25,192.15,3.2]
[1735520222432,2.6063,192.22,192.18,2.6067]
[1735520222732,12.99835999,192.23,192.15,3.2]
[1735520222937,12.99835999,192.2,192.11,3.2]
[1735520223237,12.99835999,192.17,192.07,3.2]
[1735520223739,12.99835999,192.17,192.11,2.6077]
[1735520224635,12.99835999,192.17,192.12,2.6074]
[1735520224837,12.99835999,192.17,192.06,3.2]
[1735520225533,3.2,192.19,192.07,12.99835999]
[1735520225735,1.6084,192.22,192.06,3.2]
[1735520225736,1.6084,192.22,192.1,12.99835999]
[1735520225940,1.6084,192.22,192.11,3.2]
[1735520226135,1.6084,192.22,192.18,2.6067]
[1735520228241,8.9397,192.25,192.21,2.6063]
[1735520228439,6.3339,192.25,192.21,2.6063]
[1735520230142,8.9397,192.25,192.21,2.6063]
[1735520230344,8.9397,192.25,192.13,12.99835999]
[1735520230545,8.9397,192.25,192.2,2.6065]
[1735520232436,12.99835999,192.23,192.1,12.99835999]
[1735520232751,12.99835999,192.2,192.09,3.2]
[1735520233037,2.6068,192.18,192.12,2.6075]
[1735520233244,1.5025,192.19,192.08,3.2]
[1735520233646,2.6069,192.17,192.12,2.6075]
[1735520233845,2.6069,192.17,192.08,3.2]
[1735520234241,1.5025,192.19,192.08,3.2]
[1735520234446,1.5025,192.19,192.1,12.99835999]
[1735520235346,1.5025,192.19,192.11,4.1045144]
[1735520235644,1.5025,192.19,192.1,12.99835999]
[1735520235834,1.5025,192.19,192.11,4.10544868]
[1735520236035,1.5025,192.19,192.1,12.99835999]
[1735520236239,1.5025,192.19,192.11,4.11097215]
[1735520236442,1.5025,192.19,192.15,2.607]
[1735520236945,1.5025,192.19,192.1,12.99835999]
[1735520237147,1.5025,192.19,192.11,4.11489848]
[1735520237337,1.5025,192.19,192.1,12.99835999]
[1735520237542,1.5025,192.19,192.11,4.11536009]
[1735520237742,1.5025,192.19,192.1,12.99835999]
[1735520237946,1.5025,192.19,192.11,4.11537854]
[1735520238242,1.5025,192.19,192.1,12.99835999]
[1735520238546,1.5025,192.19,192.11,4.11790971]
[1735520238754,4.1091,192.19,192.1,12.99835999]
[1735520238943,1.5025,192.19,192.11,4.11791398]
[1735520239146,1.5025,192.19,192.08,3.2]
[1735520239448,4.7025,192.19,192.09,4.12031908]
[1735520239650,4.7025,192.19,192.12,2.6075]
[1735520239846,2.607,192.17,192.12,2.6075]
[1735520240746,2.6071,192.16,192.12,2.6075]
[1735520240947,12.99835999,192.17,192.11,2.6077]
[1735520241551,12.99835999,192.17,192.07,3.2]
[1735520241749,4.7025,192.19,192.08,4.12678142]
[1735520241949,2.6068,192.18,192.09,4.12678142]
[1735520242150,2.6068,192.18,192.1,4.12678142]
[1735520242350,4.7025,192.19,192.13,2.6073]
[1735520242552,12.99835999,192.17,192.13,2.6073]
[1735520242849,15.60535999,192.17,192.13,2.6073]
[1735520243151,15.60535999,192.17,192.07,16.19835999]
[1735520243152,12.99835999,192.17,192.07,16.19835999]
[1735520243352,12.99835999,192.17,192.08,4.12891155]
[1735520243550,12.99835999,192.17,192.07,16.19835999]
[1735520243854,12.99835999,192.17,192.11,2.6076]
[1735520244058,2.6072,192.15,192.11,2.6076]
[1735520245251,12.99835999,192.14,192.03,3.2]
[1735520245551,17.71265999,192.14,192.02,3.2]
[1735520245744,2.6078,192.11,192.07,2.6082]
[1735520246352,2.6078,192.11,192.08,2.6081]
[1735520246649,17.71265999,192.14,192.08,2.6081]
[1735520246854,2.6076,192.12,192.08,2.6081]
[1735520248057,2.6078,192.11,192.06,2.6083]
[1735520250057,14.51265999,192.14,192.03,12.99835999]
[1735520250246,21.22068353,192.17,192.06,12.99835999]
[1735520250556,21.22068353,192.17,192.07,7.30419026]
[1735520250752,21.22068353,192.17,192.07,3.18]
[1735520251053,21.22068353,192.17,192.09,12.99835999]
[1735520251449,1.5174,192.2,192.16,2.607]
[1735520252144,1.5174,192.2,192.13,2.6074]
[1735520252552,12.99835999,192.18,192.07,3.18]
[1735520252851,12.99835999,192.15,192.07,3.18]
[1735520253055,12.99835999,192.15,192.03,16.17835999]
[1735520253252,2.6079,192.1,192.06,2.6083]
[1735520254151,12.99835999,192.12,192.0,12.99835999]
[1735520254456,2.6084,192.07,192.02,2.6089]
[1735520254652,12.99835999,192.09,192.02,2.6089]
[1735520254856,2.6084,192.06,192.01,2.609]
[1735520255056,15.60675999,192.06,192.01,2.609]
[1735520255647,2.6085,192.05,191.96,3.18]
[1735520255846,2.6085,192.05,191.97,4.12898016]
[1735520256054,2.6085,192.05,191.98,4.12898016]
[1735520256255,2.6085,192.05,192.0,2.6091]
[1735520257057,12.99835999,192.06,191.95,3.18]
[1735520257256,15.60675999,192.06,192.01,2.609]
[1735520260265,15.60675999,192.06,191.83,7.14773587]
[1735520260266,12.99835999,192.03,191.9,3.18]
[1735520260558,12.99835999,191.99,191.89,3.18]
[1735520260952,12.99835999,191.99,191.9,4.12094786]
[1735520261159,12.99835999,191.99,191.89,3.18]
[1735520261357,12.99835999,191.99,191.94,2.6099]
[1735520261358,15.60775999,191.99,191.94,2.6099]
[1735520262858,12.99835999,191.99,191.89,3.18]
[1735520263056,21.92985999,192.02,191.97,2.6095]
[1735520263456,12.99835999,191.99,191.9,3.2]
[1735520263656,15.60765999,191.99,191.94,2.61]
[1735520264356,12.99835999,191.99,191.86,12.99835999]
[1735520264561,2.6097,191.97,191.91,2.6103]
[1735520265460,2.6098,191.96,191.91,2.6103]
[1735520267155,5.8096,191.97,191.93,2.6101]
[1735520267456,12.99835999,191.99,191.88,12.99835999]
[1735520269273,12.99835999,191.99,191.95,2.6097]
[1735520270163,2.6095,191.98,191.93,2.61]
[1735520270368,3.2,192.01,191.88,12.99835999]
[1735520270566,12.99835999,192.0,191.88,12.99835999]
[1735520270766,2.6094,191.99,191.88,12.99835999]
[1735520271469,2.6094,191.99,191.94,2.6099]
[1735520272071,2.6097,191.97,191.92,2.6103]
[1735520272268,12.99835999,192.0,191.92,2.6103]
[1735520273375,12.99835999,192.0,191.89,15.60895999]
[1735520273573,12.99835999,192.0,191.89,12.99835999]
[1735520273877,15.60755999,192.0,191.89,12.99835999]
[1735520274078,15.60755999,192.0,191.95,2.6098]
[1735520275482,12.99835999,192.0,191.9,3.2]
[1735520276778,1.4923,192.01,191.99,2.6093]
[1735520278472,1.4923,192.01,191.93,2.6101]
[1735520278674,1.4923,192.01,191.9,4.6747]
[1735520278873,1.4923,192.01,191.91,4.10691581]
[1735520279075,3.1426,192.02,191.9,4.6747]
[1735520279282,3.1426,192.02,191.91,4.10714504]
[1735520279477,1.6044,192.02,191.9,4.6747]
[1735520279686,1.6044,192.02,191.92,12.99835999]
[1735520279981,1.6044,192.02,192.01,2.6091]
[1735520282385,2.6079,192.1,191.95,20.30825238]
[1735520282681,12.99835999,192.1,191.98,12.99835999]
[1735520282885,12.99835999,192.1,192.06,2.6083]
[1735520283787,12.99835999,192.1,192.07,2.6082]
[1735520285790,12.99835999,192.1,192.01,3.2]
[1735520285791,12.99835999,192.1,192.08,2.6081]
[1735520286780,15.60625999,192.1,192.01,3.2]
[1735520286985,12.99835999,192.07,191.97,3.2]
[1735520287489,12.99835999,192.07,192.02,2.6089]
[1735520287490,2.6086,192.05,192.02,2.6089]
[1735520287690,12.99835999,192.07,192.02,2.6089]
[1735520288086,12.99835999,192.07,192.03,2.6088]
[1735520289487,15.60665999,192.07,192.03,2.6088]
[1735520290294,12.99835999,192.07,191.97,3.2]
[1735520290488,3.2,192.09,192.05,2.6085]
[1735520290793,12.99835999,192.1,191.97,16.19835999]
[1735520290993,12.99835999,192.1,192.08,2.6081]
[1735520293595,1.5348,192.12,192.02,3.2]
[1735520293796,1.5348,192.12,192.1,2.6078]
[1735520297198,1.5348,192.12,192.02,3.2]
[1735520297899,1.5348,192.12,192.09,2.6079]
[1735520299496,1.5348,192.12,192.02,3.2]
[1735520299800,1.5348,192.12,192.1,2.6078]
[1735520300701,12.99835999,192.16,192.03,12.99835999]
[1735520301402,12.99835999,192.16,192.13,2.6074]
[1735520302299,12.99835999,192.16,192.08,3.2]
[1735520302598,1.5563,192.18,192.08,3.2]
[1735520303792,1.5563,192.18,192.16,2.6069]
[1735520306099,12.99835999,192.22,192.13,3.2]
[1735520307505,12.99835999,192.22,192.09,14.54565999]
[1735520307708,12.99835999,192.22,192.1,3.2]
[1735520308106,12.99835999,192.22,192.16,2.607]
[1735520308107,2.6066,192.2,192.16,2.607]
[1735520308308,12.99835999,192.22,192.16,2.607]
[1735520308908,2.6066,192.2,192.16,2.607]
[1735520310204,2.6066,192.2,192.17,2.6069]
[1735520311005,1.84426796,192.26,192.17,2.6069]
[1735520311006,87.16638383,192.3,192.18,12.99835999]
[1735520311305,87.16638383,192.3,192.19,1.04063686]
[1735520311906,87.16638383,192.3,192.27,2.6055]
[1735520312807,1.5052,192.31,192.24,3.2]
[1735520313009,1.5052,192.31,192.26,2.6057]
[1735520314114,4.1102,192.31,192.26,2.6057]
[1735520314309,1.5052,192.31,192.23,3.2]
[1735520314813,2.6054,192.29,192.24,2.6058]
[1735520315013,2.6054,192.29,192.19,1.04063686]
[1735520315014,12.99835999,192.29,192.19,1.04063686]
[1735520315211,12.99835999,192.29,192.2,3.2]
[1735520315607,2.6056,192.27,192.21,2.6063]
[1735520315913,12.99835999,192.29,192.21,2.6063]
[1735520316614,2.6058,192.26,192.21,2.6063]
[1735520318717,2.6058,192.26,192.22,2.6062]
[1735520320618,2.6049,192.32,192.21,12.99835999]
[1735520321016,12.99835999,192.35,192.21,12.99835999]
[1735520321214,12.99835999,192.32,192.21,12.99835999]
[1735520321522,12.99835999,192.32,192.22,3.2]
[1735520322422,2.6054,192.29,192.25,2.6057]
[1735520322616,2.6054,192.29,192.22,3.2]
[1735520322617,12.99835999,192.32,192.22,3.2]
[1735520322812,12.99835999,192.32,192.19,1.04063686]
[1735520323023,12.99835999,192.29,192.19,1.04063686]
[1735520323221,1.4811,192.28,192.19,1.04063686]
[1735520323516,2.6058,192.26,192.19,1.04063686]
[1735520324220,2.6056,192.27,192.23,2.606]
[1735520330730,2.6059,192.25,192.21,2.6063]
[1735520330926,12.99835999,192.25,192.19,1.04063686]
[1735520331825,2.6063,192.22,192.19,1.04063686]
[1735520333517,2.6063,192.22,192.19,3.64723686]
[1735520337526,2.6061,192.23,192.19,3.64723686]
[1735520338227,12.99835999,192.25,192.19,1.04063686]
[1735520338428,2.6057,192.26,192.22,2.6061]
[1735520341635,3.0232,192.27,192.24,2.6058]
[1735520343430,4.0865,192.28,192.24,2.6058]
[1735520346331,12.41763588,192.28,192.24,2.6058]
[1735520346929,8.33113588,192.26,192.19,9.37177274]
[1735520347133,8.33113588,192.26,192.19,12.51177274]
[1735520347538,10.93693588,192.26,192.22,2.6061]
[1735520348434,10.93693588,192.26,192.19,12.51177274]
[1735520348637,10.93693588,192.26,192.23,2.606]
[1735520349334,8.33113588,192.26,192.23,2.606]
[1735520350034,2.6056,192.27,192.23,2.606]
[1735520350231,1.4811,192.28,192.21,8.33113588]
[1735520350829,1.4811,192.28,192.25,2.6057]
[1735520351433,4.0865,192.28,192.25,2.6057]
[1735520351834,8.33113588,192.27,192.19,4.18063686]
[1735520352140,8.33113588,192.21,192.19,1.04063686]
[1735520354030,59.65834231,192.25,192.2,2.6064]
[1735520354031,8.33113588,192.23,192.2,2.6064]
[1735520354236,22.80708353,192.25,192.2,2.6064]
[1735520355242,22.80708353,192.25,192.21,2.6062]
[1735520356233,1.5864,192.25,192.21,2.6062]
[1735520360947,1.5864,192.25,192.19,1.04063686]
[1735520361246,1.5864,192.25,192.2,2.6064]
[1735520362345,34.24468918,192.27,192.2,2.6064]
[1735520362548,21.22068353,192.27,192.2,13.02400565]
[1735520362850,21.22068353,192.27,192.23,13.02400565]
[1735520363046,21.22068353,192.27,192.24,3.14]
[1735520363254,21.22068353,192.3,192.27,2.6055]
[1735520363551,21.22068353,192.3,192.24,4.1803662]
[1735520364151,21.22068353,192.3,192.25,1.04031209]
[1735520364555,1.6044,192.34,192.28,2.6053]
[1735520366350,1.6044,192.34,192.3,2.6051]
[1735520367356,4.209,192.34,192.3,2.6051]
[1735520368658,2.605,192.32,192.27,5.7454]
[1735520369346,2.605,192.32,192.28,2.6053]
[1735520370256,1.6044,192.34,192.25,1.04031209]
[1735520370459,13.02400565,192.33,192.25,1.04031209]
[1735520371049,2.605,192.31,192.25,1.04031209]
[1735520371256,13.02400565,192.33,192.25,1.04031209]
[1735520371855,2.6054,192.29,192.25,3.64601209]
[1735520376260,2.6056,192.27,192.25,1.04031209]
[1735520376653,8.32960965,192.29,192.25,1.04031209]
[1735520376857,2.6057,192.26,192.25,1.04031209]
[1735520384966,2.6063,192.22,192.18,3.14]
[1735520386259,2.6064,192.21,192.17,2.6068]
[1735520386466,2.6064,192.21,192.16,3.14]
[1735520386764,2.6064,192.21,192.18,2.6067]
[1735520390668,2.606,192.24,192.17,13.01863145]
[1735520390969,1.5664,192.25,192.17,13.01863145]
[1735520391268,4.1722,192.25,192.17,13.01863145]
[1735520391758,4.1722,192.25,192.21,2.6062]
[1735520393265,2.6052,192.3,192.21,3.14]
[1735520393471,21.22068353,192.31,192.21,3.14]
[1735520393472,21.22068353,192.31,192.23,13.01863145]
[1735520393866,21.22068353,192.31,192.3,2.6051]
[1735520394269,1.5699,192.33,192.27,3.14]
[1735520394467,1.5699,192.33,192.3,2.6051]
[1735520395868,21.22068353,192.37,192.31,2.605]
[1735520396072,2.6046,192.34,192.27,3.14]
[1735520396672,2.6046,192.34,192.29,2.6052]
[1735520398072,2.6046,192.34,192.27,3.14]
[1735520398271,2.6046,192.34,192.3,2.6051]
[1735520400471,2.6048,192.33,192.28,8.32566604]
[1735520401169,22.78338353,192.37,192.32,8.32566604]
[1735520401376,21.22068353,192.37,192.34,8.32566604]
[1735520401568,21.22068353,192.37,192.36,2.6043]
[1735520401771,58.07194231,192.37,192.36,2.6043]
[1735520402875,21.70126631,192.43,192.34,8.32566604]
[1735520403075,21.70126631,192.43,192.37,2.6042]
[1735520403482,8.32566604,192.4,192.22,2.6225]
[1735520403776,10.92976604,192.38,192.32,8.32566604]
[1735520404670,10.92976604,192.38,192.34,2.6045]
[1735520404976,10.92956604,192.4,192.34,8.32566604]
[1735520406371,2.6039,192.4,192.34,8.32566604]
[1735520406572,2.6039,192.4,192.35,2.6043]
[1735520408978,21.70126631,192.47,192.38,8.32566604]
[1735520409182,30.02693235,192.47,192.41,8.32566604]
[1735520409680,21.70126631,192.47,192.43,8.32566604]
[1735520409874,59.67334231,192.48,192.43,8.32566604]
[1735520409875,1.6014,192.48,192.43,8.32566604]
[1735520410376,1.6014,192.48,192.41,12.98787956]
[1735520410978,25.77236631,192.5,192.41,12.98787956]
[1735520411172,21.70126631,192.5,192.41,12.98787956]
[1735520411376,88.63998383,192.53,192.39,3.14]
[1735520411377,1.4736,192.53,192.44,12.98787956]
[1735520411576,1.4736,192.53,192.45,3.14]
[1735520411979,1.4736,192.53,192.44,12.98787956]
[1735520412178,1.4736,192.53,192.45,3.14]
[1735520412179,14.46147956,192.53,192.45,3.14]
[1735520413178,2.6025,192.5,192.45,5.743]
[1735520413876,14.46147956,192.53,192.45,3.14]
[1735520414080,2.6025,192.5,192.45,5.7431]
[1735520414582,2.6027,192.48,192.43,2.6033]
[1735520414882,14.46147956,192.53,192.43,3.14]
[1735520415277,2.6026,192.49,192.44,2.6032]
[1735520417174,2.6026,192.49,192.43,3.14]
[1735520417175,2.6024,192.51,192.43,3.14]
[1735520417687,14.46147956,192.53,192.43,3.14]
[1735520418283,2.6026,192.49,192.45,2.6031]
[1735520419082,2.6024,192.5,192.46,2.6029]
[1735520419683,2.6023,192.52,192.48,2.6026]
[1735520419886,1.4736,192.53,192.44,12.98787956]
[1735520420084,1.5573,192.56,192.47,12.98787956]
[1735520420279,1.5573,192.56,192.48,3.14]
[1735520420981,1.4706,192.59,192.48,3.14]
[1735520421180,1.4706,192.59,192.5,12.98787956]
[1735520421690,12.98787956,192.65,192.53,12.98787956]
[1735520421986,12.98787956,192.65,192.54,3.14]
[1735520421987,14.45847956,192.65,192.54,3.14]
[1735520422385,2.6008,192.63,192.54,3.14]
[1735520422591,1.4706,192.65,192.56,12.98787956]
[1735520423284,4.071,192.65,192.6,2.6011]
[1735520423491,4.071,192.65,192.6,5.7411]
[1735520423887,2.6007,192.63,192.58,5.7412]
[1735520424092,1.4706,192.65,192.49,1.5825]
[1735520424093,14.45847956,192.65,192.53,12.98787956]
[1735520424390,14.45847956,192.65,192.53,16.12787956]